fUSD/lending_fUSD_20240718
["ID","MTS","AMOUNT","RATE_DAILY","PERIOD"]
[332529978,1721288080328,-6067.08,0.00026027,2]
[332529979,1721288080338,-1222.6,0.00026027,2]
[332529980,1721288080347,-685.95,0.00026027,2]
[332529981,1721288080357,-885.84,0.00026027,2]
[332529982,1721288080366,-500.0,0.00026027,2]
[332529983,1721288080375,-589.04,0.00026027,2]
[332529984,1721288080384,-703.44,0.00026027,2]
[332529985,1721288080394,-919.77,0.00026027,2]
[332529986,1721288080403,-699.95,0.00026027,2]
[332529987,1721288080412,-2956.08,0.00026027,2]
[332529988,1721288080422,-500.0,0.00026027,2]
[332529989,1721288080431,-758.73,0.00026027,2]
[332529990,1721288080441,-1023.99,0.00026027,2]
[332529991,1721288080450,-500.0,0.00026027,2]
[332529992,1721288080459,-1159.85,0.00026027,2]
[332529993,1721288080468,-893.45,0.00026027,2]
[332529994,1721288080478,-799.42,0.00026027,2]
[332529995,1721288080488,-524.53,0.00026042,2]
[332529996,1721288080498,-1005.0,0.00026128,2]
[332529997,1721288080507,-2000.0,0.000262,2]
[332529998,1721288080516,-2000.0,0.000262,2]
[332529999,1721288080525,-2000.0,0.000262,2]
[332530000,1721288080534,-1013.98,0.000262,2]
[332530001,1721288080544,-954.82,0.00026283,7]
[332530002,1721288080553,-954.82,0.00026283,7]
[332530003,1721288080563,-1548.92,0.00026301,2]
[332530004,1721288080572,-903.45,0.00026301,2]
[332530005,1721288080582,-500.0,0.00026301,2]
[332530006,1721288080591,-873.73,0.00026301,2]
[332530007,1721288080600,-1146.78,0.00026301,2]
[332530008,1721288080610,-412.78884463,0.00026301,2]
[332530009,1721288080619,-755.65,0.00026301,2]
[332530010,1721288080629,-228.98187914,0.00026301,2]
[332530011,1721288080639,-1117.53,0.00026301,2]
[332530012,1721288080649,-1014.34,0.00026301,2]
[332530013,1721288080662,-500.0,0.00026301,2]
[332530014,1721288080671,-500.0,0.00026301,2]
[332530015,1721288080681,-926.9,0.00026301,2]
[332530016,1721288080691,-559.52,0.00026301,2]
[332530017,1721288080701,-1202.57,0.00026301,2]
[332530018,1721288080711,-500.0,0.00026301,2]
[332530019,1721288080722,-686.6,0.00026301,2]
[332530020,1721288080733,-698.02,0.00026301,2]
[332530021,1721288080745,-500.0,0.00026301,2]
[332530022,1721288080756,-568.02,0.00026301,2]
[332530023,1721288080766,-500.0,0.00026301,2]
[332530024,1721288080775,-506.5,0.00026301,2]
[332530025,1721288080786,-579.89,0.00026301,2]
[332530026,1721288080796,-888.04,0.00026301,2]
[332530027,1721288080806,-877.77,0.00026301,2]
[332530028,1721288080815,-500.0,0.00026301,2]
[332530029,1721288080826,-500.0,0.00026301,2]
[332530030,1721288080835,-689.95,0.00026301,2]
[332530031,1721288080844,-887.13,0.00026301,2]
[332530032,1721288080854,-512.75,0.00026301,2]
[332530033,1721288080863,-918.48,0.00026301,2]
[332530034,1721288080872,-500.0,0.00026301,2]
[332530035,1721288080882,-1130.16,0.00026301,2]
[332530036,1721288080892,-500.0,0.00026301,2]
[332530037,1721288080901,-500.0,0.00026301,2]
[332530038,1721288080910,-1018.39,0.00026301,2]
[332530039,1721288080920,-423.81074097,0.00026301,2]
[332530040,1721288080930,-500.0,0.00026301,2]
[332530041,1721288080939,-582.9,0.00026301,2]
[332530042,1721288080949,-500.0,0.00026301,2]
[332530043,1721288080958,-629.0,0.00026301,2]
[332530044,1721288080967,-682.95,0.00026301,2]
[332530045,1721288080977,-1036.97,0.00026301,2]
[332530046,1721288080987,-688.35,0.00026301,2]
[332530047,1721288080997,-500.0,0.00026301,2]
[332530048,1721288081006,-851.26,0.00026301,2]
[332530049,1721288081016,-1046.3,0.00026301,2]
[332530050,1721288081025,-500.0,0.00026301,2]
[332530051,1721288081035,-988.22,0.00026301,2]
[332530052,1721288081045,-500.0,0.00026301,2]
[332530053,1721288081056,-400.35201571,0.00026301,2]
[332530054,1721288081066,-500.0,0.00026301,2]
[332530055,1721288081076,-864.94,0.00026301,2]
[332530056,1721288081086,-704.02,0.00026301,2]
[332530057,1721288081097,-791.51,0.00026301,2]
[332530058,1721288081107,-637.96,0.00026301,2]
[332530059,1721288081118,-645.57,0.00026301,2]
[332530060,1721288081128,-632.83,0.00026301,2]
[332530061,1721288081138,-654.28,0.00026301,2]
[332530062,1721288081149,-616.18,0.00026301,2]
[332530063,1721288081160,-673.07,0.00026301,2]
[332530064,1721288081172,-500.0,0.00026301,2]
[332530065,1721288081182,-530.94,0.00026301,2]
[332530066,1721288081193,-527.98,0.00026301,2]
[332530067,1721288081203,-547.08,0.00026301,2]
[332530068,1721288081213,-559.75,0.00026301,2]
[332530069,1721288081224,-611.76,0.00026301,2]
[332530070,1721288081234,-1173.23,0.00026301,2]
[332530071,1721288081252,-709.13,0.00026301,2]
[332530072,1721288081262,-753.22,0.00026301,2]
[332530073,1721288081272,-571.73,0.00026301,2]
[332530074,1721288081283,-679.34,0.00026301,2]
[332530075,1721288081293,-393.7,0.00026301,2]
[332530076,1721288081307,-771.42,0.00026301,2]
[332530077,1721288081317,-500.0,0.00026301,2]
[332530078,1721288081328,-500.0,0.00026301,2]
[332530079,1721288081339,-500.0,0.00026301,2]
[332530080,1721288081349,-1055.96,0.00026301,2]
[332530081,1721288081360,-500.0,0.00026301,2]
[332530082,1721288081370,-703.28,0.00026301,2]
[332530083,1721288081380,-750.7,0.00026301,2]
[332530084,1721288081391,-756.04,0.00026301,2]
[332530085,1721288081402,-500.0,0.00026301,2]
[332530086,1721288081412,-500.0,0.00026301,2]
[332530087,1721288081421,-500.0,0.00026301,2]
[332530088,1721288081431,-1168.54,0.00026301,2]
[332530089,1721288081441,-1538.77,0.00026301,2]
[332530090,1721288081451,-926.42,0.00026301,2]
[332530091,1721288081460,-1335.62,0.00026301,2]
[332530092,1721288081471,-1229.0,0.00026301,2]
[332530093,1721288081481,-984.25,0.00026301,2]
[332530094,1721288081491,-426.61641838,0.00026301,2]
[332530095,1721288081501,-1387.55,0.00026301,2]
[332530096,1721288081510,-410.92649785,0.00026301,2]
[332530097,1721288081520,-925.35,0.00026301,2]
[332530098,1721288081529,-542.52,0.00026301,2]
[332530099,1721288081539,-500.0,0.00026301,2]
[332530100,1721288081549,-500.0,0.00026301,2]
[332530101,1721288081559,-500.0,0.00026301,2]
[332530102,1721288081569,-1699.26,0.00026301,2]
[332530103,1721288081581,-542.08,0.00026301,2]
[332530104,1721288081590,-560.08,0.00026301,2]
[332530105,1721288081600,-500.0,0.00026301,2]
[332530106,1721288081609,-500.0,0.00026301,2]
[332530107,1721288081618,-1355.83,0.00026301,2]
[332530108,1721288081627,-505.95,0.00026301,2]
[332530109,1721288081636,-500.0,0.00026301,2]
[332530110,1721288081646,-628.74,0.00026301,2]
[332530111,1721288081657,-500.0,0.00026301,2]
[332530112,1721288081668,-676.4,0.00026301,2]
[332530113,1721288081677,-538.06,0.00026301,2]
[332530114,1721288081687,-500.0,0.00026301,2]
[332530115,1721288081698,-1065.58,0.00026301,2]
[332530116,1721288081707,-1171.41,0.00026301,2]
[332530117,1721288081716,-1408.6,0.00026301,7]
[332530118,1721288081726,-872.67,0.00026301,2]
[332530119,1721288081738,-1348.92,0.00026301,2]
[332530120,1721288081764,-838.7,0.00026301,2]
[332530121,1721288081774,-503.03,0.00026301,2]
[332530122,1721288081784,-500.0,0.00026301,2]
[332530123,1721288081794,-355.92495098,0.00026301,2]
[332530124,1721288081959,-802.6,0.00026301,2]
[332530125,1721288081971,-780.83,0.00026301,2]
[332530126,1721288081981,-579.37,0.00026301,2]
[332530127,1721288081995,-781.35,0.00026301,2]
[332530128,1721288082007,-724.1,0.00026301,2]
[332530129,1721288082017,-500.0,0.00026301,2]
[332530130,1721288082027,-568.82,0.00026301,2]
[332530131,1721288082038,-771.73,0.00026301,2]
[332530132,1721288082055,-1353.92,0.00026301,2]
[332530133,1721288082065,-1387.82,0.00026301,2]
[332530134,1721288082076,-1287.42,0.00026301,2]
[332530135,1721288082086,-500.0,0.00026301,2]
[332530136,1721288082097,-553.81,0.00026301,2]
[332530137,1721288082107,-500.0,0.00026301,2]
[332530138,1721288082118,-500.0,0.00026301,2]
[332530139,1721288082128,-911.72,0.00026301,2]
[332530140,1721288082138,-500.0,0.00026301,2]
[332530141,1721288082148,-972.31,0.00026301,2]
[332530142,1721288082158,-682.98,0.00026301,2]
[332530143,1721288082168,-1109.76,0.00026301,2]
[332530144,1721288082179,-819.38,0.00026301,2]
[332530145,1721288082189,-500.0,0.00026301,2]
[332530146,1721288082199,-836.26,0.00026301,2]
[332530147,1721288082210,-544.15,0.00026301,2]
[332530148,1721288082220,-500.0,0.00026301,2]
[332530149,1721288082230,-744.75,0.00026301,2]
[332530150,1721288082241,-659.68,0.00026301,2]
[332530151,1721288082256,-1074.46,0.00026301,2]
[332530152,1721288082266,-918.1,0.00026301,2]
[332530153,1721288082276,-500.0,0.00026301,2]
[332530154,1721288082287,-637.37,0.00026301,2]
[332530155,1721288082296,-941.47,0.00026301,2]
[332530156,1721288082306,-808.27,0.00026301,2]
[332530157,1721288082315,-1715.0,0.00026301,2]
[332530158,1721288082325,-543.92,0.00026301,2]
[332530159,1721288082335,-500.0,0.00026301,2]
[332530160,1721288082345,-848.98,0.00026301,2]
[332530161,1721288082355,-702.02,0.00026301,2]
[332530162,1721288082365,-833.62,0.00026301,2]
[332530163,1721288082375,-747.03,0.00026301,2]
[332530164,1721288082386,-694.12,0.00026301,2]
[332530165,1721288082396,-1393.96,0.00026301,2]
[332530166,1721288082406,-923.3,0.00026301,2]
[332530167,1721288082416,-864.51,0.00026301,2]
[332530168,1721288082426,-874.63,0.00026301,2]
[332530169,1721288082436,-572.13,0.00026301,2]
[332530170,1721288082446,-500.0,0.00026301,2]
[332530171,1721288082455,-768.44,0.00026301,2]
[332530172,1721288082465,-919.94,0.00026301,2]
[332530173,1721288082476,-500.0,0.00026301,2]
[332530174,1721288082487,-500.0,0.00026301,2]
[332530175,1721288082503,-500.0,0.00026301,2]
[332530176,1721288082513,-567.01,0.00026301,2]
[332530177,1721288082523,-750.97,0.00026301,2]
[332530178,1721288082533,-664.81,0.00026301,2]
[332530179,1721288082545,-1439.37,0.00026301,2]
[332530180,1721288082556,-820.24,0.00026301,2]
[332530181,1721288082565,-500.0,0.00026301,2]
[332530182,1721288082575,-659.88,0.00026301,2]
[332530183,1721288082585,-458.98306627,0.00026301,2]
[332530184,1721288082594,-675.36,0.00026301,2]
[332530185,1721288082604,-1239.37,0.00026301,2]
[332530186,1721288082613,-587.43,0.00026301,2]
[332530187,1721288082624,-500.0,0.00026301,2]
[332530188,1721288082634,-1037.75,0.00026301,2]
[332530189,1721288082643,-1312.95,0.00026301,2]
[332530190,1721288082654,-500.0,0.00026301,2]
[332530191,1721288082666,-500.0,0.00026301,2]
[332530192,1721288082677,-759.36,0.00026301,2]
[332530193,1721288082687,-1508.18,0.00026301,2]
[332530194,1721288082696,-589.69,0.00026301,2]
[332530195,1721288082706,-589.59,0.00026301,2]
[332530196,1721288082716,-500.0,0.00026301,2]
[332530197,1721288082726,-519.36,0.00026301,2]
[332530198,1721288082736,-465.48,0.00026301,2]
[332530199,1721288082756,-500.0,0.00026301,2]
[332530200,1721288082766,-1570.3,0.00026301,2]
[332530201,1721288082776,-500.0,0.00026301,2]
[332530202,1721288082786,-684.5,0.00026301,2]
[332530203,1721288082795,-778.25,0.00026301,2]
[332530204,1721288082806,-1825.46,0.00026301,2]
[332530205,1721288082816,-647.56,0.00026301,2]
[332530206,1721288082826,-1501.12,0.00026301,2]
[332530207,1721288082835,-649.76,0.00026301,2]
[332530208,1721288082845,-698.16,0.00026301,2]
[332530209,1721288082855,-500.0,0.00026301,2]
[332530210,1721288082866,-838.21,0.00026301,2]
[332530211,1721288082876,-832.49,0.00026301,2]
[332530212,1721288082886,-635.85,0.00026301,2]
[332530213,1721288082896,-1002.59,0.00026301,2]
[332530214,1721288082906,-1264.99,0.00026301,2]
[332530215,1721288082916,-558.12,0.00026301,2]
[332530216,1721288082926,-667.65,0.00026301,2]
[332530217,1721288082936,-828.72,0.00026301,2]
[332530218,1721288082946,-825.13,0.00026301,2]
[332530219,1721288082956,-935.3,0.00026301,2]
[332530220,1721288082966,-500.0,0.00026301,2]
[332530221,1721288082977,-572.09,0.00026301,2]
[332530222,1721288082987,-500.0,0.00026301,2]
[332530223,1721288083001,-801.73,0.00026301,2]
[332530224,1721288083011,-829.06,0.00026301,2]
[332530225,1721288083021,-533.21,0.00026301,2]
[332530226,1721288083031,-1500.37,0.00026301,2]
[332530227,1721288083040,-993.33,0.00026301,2]
[332530228,1721288083050,-614.68,0.00026301,2]
[332530229,1721288083060,-839.63,0.00026301,2]
[332530230,1721288083070,-1099.16,0.00026301,2]
[332530231,1721288083080,-2190.92,0.00026301,2]
[332530232,1721288083090,-769.89,0.00026301,2]
[332530233,1721288083099,-1387.79,0.00026301,2]
[332530234,1721288083109,-860.39,0.00026301,2]
[332530235,1721288083119,-916.75,0.00026301,2]
[332530236,1721288083129,-500.0,0.00026301,2]
[332530237,1721288083138,-621.09,0.00026301,2]
[332530238,1721288083149,-500.0,0.00026301,2]
[332530239,1721288083159,-2607.0,0.00026301,2]
[332530240,1721288083169,-934.95,0.00026301,2]
[332530241,1721288083179,-1185.83,0.00026301,2]
[332530242,1721288083189,-634.32,0.00026301,2]
[332530243,1721288083199,-714.68,0.00026301,2]
[332530244,1721288083209,-706.1,0.00026301,2]
[332530245,1721288083219,-992.23,0.00026301,2]
[332530246,1721288083230,-719.06,0.00026301,2]
[332530247,1721288083240,-500.0,0.00026301,2]
[332530248,1721288083256,-879.71,0.00026301,2]
[332530249,1721288083265,-962.74,0.00026301,2]
[332530250,1721288083275,-4194.17,0.00026301,2]
[332530251,1721288083284,-500.0,0.00026301,2]
[332530252,1721288083294,-500.0,0.00026301,2]
[332530253,1721288083303,-796.16,0.00026301,2]
[332530254,1721288083313,-845.59,0.00026301,2]
[332530255,1721288083323,-607.98,0.00026301,2]
[332530256,1721288083332,-1343.67,0.00026301,2]
[332530257,1721288083342,-884.87,0.00026301,2]
[332530258,1721288083352,-398.09127666,0.00026301,2]
[332530259,1721288083362,-563.78,0.00026301,2]
[332530260,1721288083371,-664.21,0.00026301,2]
[332530261,1721288083381,-619.48,0.00026301,2]
[332530262,1721288083390,-1023.41,0.00026301,2]
[332530263,1721288083400,-4286.57,0.00026301,2]
[332530264,1721288083409,-759.2,0.00026301,2]
[332530265,1721288083418,-500.0,0.00026301,2]
[332530266,1721288083428,-1303.0,0.00026301,2]
[332530267,1721288083437,-664.93,0.00026301,2]
[332530268,1721288083447,-799.99,0.00026301,2]
[332530269,1721288083458,-779.15,0.00026301,2]
[332530270,1721288083469,-705.02,0.00026301,2]
[332530271,1721288083482,-500.0,0.00026301,2]
[332530272,1721288083495,-699.13,0.00026301,2]
[332530273,1721288083506,-712.43,0.00026301,2]
[332530274,1721288083516,-615.07,0.00026301,2]
[332530275,1721288083527,-840.9,0.00026301,2]
[332530276,1721288083537,-640.55,0.00026301,2]
[332530277,1721288083548,-842.93,0.00026301,2]
[332530278,1721288083559,-1213.95,0.00026301,2]
[332530279,1721288083569,-500.0,0.00026301,2]
[332530280,1721288083579,-515.65,0.00026301,2]
[332530281,1721288083590,-964.94,0.00026301,2]
[332530282,1721288083600,-592.68,0.00026301,2]
[332530283,1721288083610,-6375.98,0.00026301,2]
[332530284,1721288083621,-1379.21,0.00026301,2]
[332530285,1721288083631,-1037.41,0.00026301,2]
[332530286,1721288083641,-466.09699245,0.00026301,2]
[332530287,1721288083651,-559.08,0.00026301,2]
[332530288,1721288083666,-1444.47,0.00026301,2]
[332530289,1721288083676,-1777.51,0.00026301,2]
[332530290,1721288083686,-1147.47,0.00026301,2]
[332530291,1721288083696,-1083.93,0.00026301,2]
[332530292,1721288083707,-815.97,0.00026301,2]
[332530293,1721288083716,-1394.22,0.00026301,2]
[332530294,1721288083726,-234.08394,0.00026301,2]
[332530295,1721288083737,-1149.47,0.00026301,2]
[332530296,1721288083752,-588.95,0.00026301,2]
[332530297,1721288083762,-7884.99,0.00026301,2]
[332530298,1721288083772,-2350.96,0.00026301,2]
[332530299,1721288083782,-1142.52,0.00026301,2]
[332530300,1721288083791,-751.24,0.00026301,2]
[332530301,1721288083800,-518.01,0.00026301,2]
[332530302,1721288083810,-1047.43,0.00026301,2]
[332530303,1721288083820,-9262.82,0.00026301,2]
[332530304,1721288083830,-576.17,0.00026301,2]
[332530305,1721288083840,-817.71,0.00026301,2]
[332530306,1721288083850,-567.84,0.00026301,2]
[332530307,1721288083860,-500.0,0.00026301,2]
[332530308,1721288083870,-943.1,0.00026301,2]
[332530309,1721288083880,-714.81,0.00026301,2]
[332530310,1721288083890,-559.22,0.00026301,2]
[332530311,1721288083900,-1700.34,0.00026301,2]
[332530312,1721288083910,-595.86,0.00026301,2]
[332530313,1721288083920,-671.4,0.00026301,2]
[332530314,1721288083929,-897.02,0.00026301,2]
[332530315,1721288083939,-709.03,0.00026301,2]
[332530316,1721288083949,-812.96,0.00026301,2]
[332530317,1721288083959,-763.5,0.00026301,2]
[332530318,1721288083969,-919.85,0.00026301,2]
[332530319,1721288083978,-915.85,0.00026301,2]
[332530320,1721288083987,-1583.56,0.00026301,2]
[332530321,1721288083998,-634.02,0.00026301,2]
[332530322,1721288084008,-1450.66,0.00026301,2]
[332530323,1721288084018,-708.78,0.00026301,2]
[332530324,1721288084027,-948.76,0.00026301,2]
[332530325,1721288084037,-1051.57,0.00026301,2]
[332530326,1721288084047,-2003.88,0.00026301,2]
[332530327,1721288084056,-601.06,0.00026301,2]
[332530328,1721288084066,-796.81,0.00026301,2]
[332530329,1721288084076,-515.65,0.00026301,2]
[332530330,1721288084086,-1013.83,0.00026301,2]
[332530331,1721288084095,-544.27,0.00026301,2]
[332530332,1721288084105,-503.35,0.00026301,2]
[332530333,1721288084115,-1299.19,0.00026301,2]
[332530334,1721288084124,-1547.31,0.00026301,2]
[332530335,1721288084134,-500.0,0.00026301,2]
[332530336,1721288084144,-612.66,0.00026301,2]
[332530337,1721288084154,-957.7,0.00026301,2]
[332530338,1721288084164,-999.04,0.00026301,2]
[332530339,1721288084174,-677.55,0.00026301,2]
[332530340,1721288084184,-549.83,0.00026301,2]
[332530341,1721288084194,-798.47,0.00026301,2]
[332530342,1721288084203,-695.01,0.00026301,2]
[332530343,1721288084214,-518.09,0.00026301,2]
[332530344,1721288084223,-1656.81,0.00026301,2]
[332530345,1721288084594,-813.28,0.00026301,2]
[332530346,1721288084611,-945.22,0.00026301,2]
[332530347,1721288084621,-947.17,0.00026301,2]
[332530348,1721288084631,-539.79,0.00026301,2]
[332530349,1721288084640,-706.37,0.00026301,2]
[332530350,1721288084650,-1135.75,0.00026301,2]
[332530351,1721288084660,-673.53,0.00026301,2]
[332530352,1721288084676,-3128.96,0.00026301,2]
[332530353,1721288084686,-557.31,0.00026301,2]
[332530354,1721288084696,-669.1,0.00026301,2]
[332530355,1721288084707,-3223.32,0.00026301,2]
[332530356,1721288084717,-842.49,0.00026301,2]
[332530357,1721288084727,-542.57,0.00026301,2]
[332530358,1721288084737,-836.84,0.00026301,2]
[332530359,1721288084749,-884.02,0.00026301,2]
[332530360,1721288084759,-1416.46,0.00026301,2]
[332530361,1721288084768,-525.77,0.00026301,2]
[332530362,1721288084778,-500.0,0.00026301,2]
[332530363,1721288084788,-808.77,0.00026301,2]
[332530364,1721288084798,-813.18,0.00026301,2]
[332530365,1721288084808,-2204.96,0.00026301,2]
[332530366,1721288084818,-888.04,0.00026301,2]
[332530367,1721288084828,-617.34,0.00026301,2]
[332530368,1721288084839,-503.15,0.00026301,2]
[332530369,1721288084849,-500.0,0.00026301,2]
[332530370,1721288084859,-550.97,0.00026301,2]
[332530371,1721288084869,-773.79,0.00026301,2]
[332530372,1721288084879,-556.49,0.00026301,2]
[332530373,1721288084890,-1258.11,0.00026301,2]
[332530374,1721288084900,-1541.61,0.00026301,2]
[332530375,1721288084910,-1497.76,0.00026301,2]
[332530376,1721288084919,-923.36,0.00026301,2]
[332530377,1721288084929,-276.98822865,0.00026301,2]
[332530378,1721288084939,-698.16,0.00026301,2]
[332530379,1721288084950,-1777.63,0.00026301,2]
[332530380,1721288084959,-1751.66,0.00026301,2]
[332530381,1721288084969,-748.62,0.00026301,2]
[332530382,1721288084979,-1440.65,0.00026301,2]
[332530383,1721288084989,-500.0,0.00026301,2]
[332530384,1721288085000,-1459.37,0.00026301,2]
[332530385,1721288085009,-834.65,0.00026301,2]
[332530386,1721288085019,-574.9,0.00026301,2]
[332530387,1721288085028,-967.34,0.00026301,2]
[332530388,1721288085038,-600.34,0.00026301,2]
[332530389,1721288085047,-945.46,0.00026301,2]
[332530390,1721288085057,-6789.46,0.00026301,2]
[332530391,1721288085067,-500.0,0.00026301,2]
[332530392,1721288085077,-702.74,0.00026301,2]
[332530393,1721288085086,-1649.03,0.00026301,2]
[332530394,1721288085096,-1351.16,0.00026301,2]
[332530395,1721288085107,-846.83,0.00026301,2]
[332530396,1721288085117,-3838.48,0.00026301,2]
[332530397,1721288085127,-727.83,0.00026301,2]
[332530398,1721288085136,-1099.8,0.00026301,2]
[332530399,1721288085147,-592.88,0.00026301,2]
[332530400,1721288085156,-1314.69,0.00026301,2]
[332530401,1721288085165,-660.25,0.00026301,2]
[332530402,1721288085176,-1225.2,0.00026301,2]
[332530403,1721288085185,-690.8,0.00026301,2]
[332530404,1721288085195,-758.27,0.00026301,2]
[332530405,1721288085204,-815.9,0.00026301,2]
[332530406,1721288085214,-1445.6,0.00026301,2]
[332530407,1721288085223,-1211.24,0.00026301,2]
[332530408,1721288085233,-764.9,0.00026301,2]
[332530409,1721288085244,-1017.79,0.00026301,2]
[332530410,1721288085254,-819.77,0.00026301,2]
[332530411,1721288085263,-843.65,0.00026301,2]
[332530412,1721288085272,-508.09,0.00026301,2]
[332530413,1721288085285,-1121.8,0.00026301,2]
[332530414,1721288085295,-4510.49,0.00026301,2]
[332530415,1721288085306,-548.62,0.00026301,2]
[332530416,1721288085316,-615.98,0.00026301,2]
[332530417,1721288085326,-732.51,0.00026301,2]
[332530418,1721288085335,-727.51,0.00026301,2]
[332530419,1721288085345,-500.0,0.00026301,2]
[332530420,1721288085354,-699.69,0.00026301,2]
[332530421,1721288085365,-780.84,0.00026301,2]
[332530422,1721288085376,-985.19,0.00026301,2]
[332530423,1721288085387,-2219.16,0.00026301,2]
[332530424,1721288085396,-661.47,0.00026301,2]
[332530425,1721288085406,-2008.64,0.00026301,2]
[332530426,1721288085415,-707.34,0.00026301,2]
[332530427,1721288085425,-776.84,0.00026301,2]
[332530428,1721288085435,-2197.33,0.00026301,2]
[332530429,1721288085444,-813.45,0.00026301,2]
[332530430,1721288085455,-6067.08,0.00026301,2]
[332530431,1721288085464,-1222.6,0.00026301,2]
[332530432,1721288085474,-685.95,0.00026301,2]
[332530433,1721288085484,-885.84,0.00026301,2]
[332530434,1721288085494,-500.0,0.00026301,2]
[332530435,1721288085504,-589.04,0.00026301,2]
[332530436,1721288085514,-703.44,0.00026301,2]
[332530437,1721288085528,-919.77,0.00026301,2]
[332530438,1721288085538,-699.95,0.00026301,2]
[332530439,1721288085548,-2956.08,0.00026301,2]
[332530440,1721288085559,-500.0,0.00026301,2]
[332530441,1721288085570,-758.73,0.00026301,2]
[332530442,1721288085580,-1023.99,0.00026301,2]
[332530443,1721288085590,-1159.85,0.00026301,2]
[332530444,1721288085601,-893.45,0.00026301,2]
[332530445,1721288085612,-500.0,0.00026301,2]
[332530446,1721288085622,-799.42,0.00026301,2]
[332530447,1721288085632,-80649.1,0.00026301,2]
[332530448,1721288085642,-2807.47302462,0.00026365,28]
[332530449,1721288085653,-1005.0,0.00026389,2]
[332530450,1721288085667,-25957.22888816,0.000264,2]
[332530451,1721288085678,-979.61,0.00026429,2]
[332530452,1721288085688,-304.34,0.0002644,2]
[332530453,1721288085698,-4010.0,0.00026463,7]
[332530454,1721288085709,-150.0,0.00026532,2]
[332530455,1721288085719,-1000.0,0.0002655,2]
[332530456,1721288085729,-954.82,0.00026556,7]
[332530457,1721288085742,-954.82,0.00026556,7]
[332530458,1721288085755,-1548.92,0.00026575,2]
[332530459,1721288085766,-903.45,0.00026575,2]
[332530460,1721288085778,-500.0,0.00026575,2]
[332530461,1721288085788,-873.73,0.00026575,2]
[332530462,1721288085799,-1146.78,0.00026575,2]
[332530463,1721288085809,-755.65,0.00026575,2]
[332530464,1721288085820,-1117.53,0.00026575,2]
[332530465,1721288085830,-1014.34,0.00026575,2]
[332530466,1721288085841,-500.0,0.00026575,2]
[332530467,1721288085851,-337.89906433,0.00026575,2]
[332530468,1721288085862,-926.9,0.00026575,2]
[332530469,1721288085873,-559.52,0.00026575,2]
[332530470,1721288085883,-1202.57,0.00026575,2]
[332530471,1721288085894,-500.0,0.00026575,2]
[332530472,1721288085904,-686.6,0.00026575,2]
[332530473,1721288085915,-698.02,0.00026575,2]
[332530474,1721288085926,-500.0,0.00026575,2]
[332530475,1721288085936,-568.02,0.00026575,2]
[332530476,1721288085948,-500.0,0.00026575,2]
[332530477,1721288085958,-506.5,0.00026575,2]